fUST/lending_fUST_20241106
["ID","MTS","AMOUNT","RATE_DAILY","PERIOD"]
[341441526,1730886649351,-14249.64,0.00027671,2]
[341441527,1730886649361,-506.7,0.00027671,2]
[341441528,1730886649370,-500.0,0.00027671,2]
[341441529,1730886649379,-500.0,0.00027671,2]
[341441530,1730886649389,-500.0,0.00027671,2]
[341441531,1730886649398,-500.0,0.00027671,2]
[341441532,1730886649408,-2658.28,0.00027671,2]
[341441533,1730886649418,-500.0,0.00027671,2]
[341441534,1730886649428,-420.4464469,0.00027671,2]
[341441535,1730886649438,-500.0,0.00027671,2]
[341441536,1730886649448,-564.02354214,0.00027671,2]
[341441537,1730886649458,-2185.94,0.00027671,2]
[341441538,1730886649478,-300.36854448,0.00027671,2]
[341441539,1730886649489,-508.84434533,0.00027671,2]
[341441540,1730886649501,-892.73,0.00027671,2]
[341441541,1730886649637,-517.25695715,0.00027671,2]
[341441542,1730886649647,-514.09402128,0.00027671,2]
[341441543,1730886649656,-500.0,0.00027671,2]
[341441544,1730886649666,-500.0,0.00027671,2]
[341441545,1730886649676,-500.0,0.00027671,2]
[341441546,1730886649686,-505.03513103,0.00027671,2]
[341441547,1730886649696,-500.0,0.00027671,2]
[341441548,1730886649705,-500.0,0.00027671,2]
[341441549,1730886649715,-525.87137336,0.00027671,2]
[341441550,1730886649725,-500.0,0.00027671,2]
[341441551,1730886649734,-507.71398076,0.00027671,2]
[341441552,1730886649744,-303.73589396,0.00027671,2]
[341441553,1730886649754,-511.3342661,0.00027671,2]
[341441554,1730886649763,-363.43056581,0.00027671,2]
[341441555,1730886649772,-506.20537914,0.00027671,2]
[341441556,1730886649781,-500.0,0.00027671,2]
[341441557,1730886649791,-531.37375211,0.00027671,2]
[341441558,1730886649802,-500.0,0.00027671,2]
[341441559,1730886649811,-500.0,0.00027671,2]
[341441560,1730886649821,-1185.63,0.00027671,2]
[341441561,1730886649831,-181.31464296,0.00027671,2]
[341441562,1730886649840,-500.0,0.00027671,2]
[341441563,1730886649850,-500.0,0.00027671,2]
[341441564,1730886649859,-500.0,0.00027671,2]
[341441565,1730886649869,-500.0,0.00027671,2]
[341441566,1730886649879,-500.0,0.00027671,2]
[341441567,1730886649888,-500.0,0.00027671,2]
[341441568,1730886649898,-500.0,0.00027671,2]
[341441569,1730886649907,-500.0,0.00027671,2]
[341441570,1730886649916,-500.0,0.00027673,5]
[341441571,1730886649925,-500.0,0.00027673,5]
[341441572,1730886649935,-500.0,0.00027673,5]
[341441573,1730886649944,-500.0,0.00027673,5]
[341441574,1730886649953,-500.0,0.00027673,5]
[341441575,1730886649962,-248.93589586,0.00027673,5]
[341441576,1730886649972,-1500.0,0.00027675,5]
[341441577,1730886649982,-508.20378584,0.00027675,5]
[341441578,1730886649992,-585.14912009,0.00027945,2]
[341441579,1730886650004,-500.0,0.00027945,2]
[341441580,1730886650019,-500.0,0.00027945,2]
[341441581,1730886650033,-500.0,0.00027945,2]
[341441582,1730886650042,-500.0,0.00027945,2]
[341441583,1730886650057,-500.0,0.00027945,2]
[341441584,1730886650068,-410.25423262,0.00027945,2]
[341441585,1730886650078,-500.0,0.00027945,2]
[341441586,1730886650088,-535.12,0.00027945,2]
[341441587,1730886650098,-500.0,0.00027945,2]
[341441588,1730886650108,-525.02897724,0.00027945,2]
[341441589,1730886650118,-409.53301792,0.00027945,2]
[341441590,1730886650127,-500.0,0.00027945,2]
[341441591,1730886650137,-500.0,0.00027945,2]
[341441592,1730886650147,-500.0,0.00027945,2]
[341441593,1730886650157,-500.0,0.00027945,2]
[341441594,1730886650167,-500.0,0.00027945,2]
[341441595,1730886650177,-500.0,0.00027945,2]
[341441596,1730886650187,-500.0,0.00027945,2]
[341441597,1730886650197,-500.0,0.00027945,2]
[341441598,1730886650207,-500.0,0.00027945,2]
[341441599,1730886650216,-500.0,0.00027945,2]
[341441600,1730886650226,-500.0,0.00027945,2]
[341441601,1730886650235,-500.0,0.00027945,2]
[341441602,1730886650247,-500.0,0.00027945,2]
[341441603,1730886650257,-552.74056723,0.00027945,2]
[341441604,1730886650267,-417.35145022,0.00027945,2]
[341441605,1730886650277,-500.0,0.00027945,2]
[341441606,1730886650286,-500.0,0.00027945,2]
[341441607,1730886650296,-500.0,0.00027945,2]
[341441608,1730886650306,-500.0,0.00027945,2]
[341441609,1730886650316,-500.0,0.00027945,2]
[341441610,1730886650325,-500.0,0.00027945,2]
[341441611,1730886650335,-500.0,0.00027945,2]
[341441612,1730886650344,-554.44706803,0.00027945,2]
[341441613,1730886650354,-500.0,0.00027945,2]
[341441614,1730886650363,-500.0,0.00027945,2]
[341441615,1730886650372,-514.55172765,0.00027945,2]
[341441616,1730886650381,-244.83777295,0.00027945,2]
[341441617,1730886650391,-500.0,0.00027945,2]
[341441618,1730886650402,-500.0,0.00027945,2]
[341441619,1730886650412,-500.0,0.00027945,2]
[341441620,1730886650422,-422.39368226,0.00027945,2]
[341441621,1730886650431,-500.0,0.00027945,2]
[341441622,1730886650443,-500.0,0.00027945,2]
[341441623,1730886650453,-500.0,0.00027945,2]
[341441624,1730886650463,-500.0,0.00027945,2]
[341441625,1730886650472,-500.0,0.00027945,2]
[341441626,1730886650482,-500.0,0.00027945,2]
[341441627,1730886650492,-160.13870932,0.00027945,2]
[341441628,1730886650503,-500.0,0.00027945,2]
[341441629,1730886650512,-500.0,0.00027945,2]
[341441630,1730886650522,-500.0,0.00027945,2]
[341441631,1730886650532,-500.0,0.00027945,2]
[341441632,1730886650541,-500.0,0.00027945,2]
[341441633,1730886650552,-497.38633113,0.00027945,2]
[341441634,1730886650562,-500.0,0.00027945,2]
[341441635,1730886650571,-500.0,0.00027945,2]
[341441636,1730886650581,-500.0,0.00027945,2]
[341441637,1730886650590,-500.0,0.00027945,2]
[341441638,1730886650599,-210.36428029,0.00027945,2]
[341441639,1730886650609,-500.0,0.00027945,2]
[341441640,1730886650618,-500.0,0.00027945,2]
[341441641,1730886650628,-500.0,0.00027945,2]
[341441642,1730886650638,-500.0,0.00027945,2]
[341441643,1730886650649,-591.17546778,0.00027945,2]
[341441644,1730886650662,-500.0,0.00027945,2]
[341441645,1730886650672,-507.79034675,0.00027945,2]
[341441646,1730886650681,-578.34811625,0.00027945,2]
[341441647,1730886650691,-500.0,0.00027945,2]
[341441648,1730886650700,-500.0,0.00027945,2]
[341441649,1730886650710,-152.79097722,0.00027945,2]
[341441650,1730886650719,-382.87532477,0.00027945,2]
[341441651,1730886650728,-500.0,0.00027945,2]
[341441652,1730886650738,-500.0,0.00027945,2]
[341441653,1730886650749,-427.15251484,0.00027945,2]
[341441654,1730886650758,-500.0,0.00027945,2]
[341441655,1730886650767,-244.26158918,0.00027945,2]
[341441656,1730886650777,-500.0,0.00027945,2]
[341441657,1730886650786,-500.0,0.00027945,2]
[341441658,1730886650795,-500.0,0.00027945,2]
[341441659,1730886650806,-500.0,0.00027945,2]
[341441660,1730886650817,-500.0,0.00027945,2]
[341441661,1730886650826,-500.0,0.00027945,2]
[341441662,1730886650835,-500.0,0.00027945,2]
[341441663,1730886650846,-500.0,0.00027945,2]
[341441664,1730886650857,-500.0,0.00027945,2]
[341441665,1730886650867,-540.28,0.00027945,2]
[341441666,1730886650877,-500.0,0.00027945,2]
[341441667,1730886650887,-500.0,0.00027945,2]
[341441668,1730886650896,-500.0,0.00027945,2]
[341441669,1730886650905,-500.0,0.00027945,2]
[341441670,1730886650915,-500.0,0.00027945,2]
[341441671,1730886650924,-500.0,0.00027945,2]
[341441672,1730886650934,-500.0,0.00027945,2]
[341441673,1730886650943,-344.15260463,0.00027945,2]
[341441674,1730886650952,-627.54615864,0.00027945,2]
[341441675,1730886650962,-500.0,0.00027945,2]
[341441676,1730886650972,-500.0,0.00027945,2]
[341441677,1730886650981,-500.0,0.00027945,2]
[341441678,1730886650990,-509.82304472,0.00027945,2]
[341441679,1730886651001,-500.0,0.00027945,2]
[341441680,1730886651011,-500.0,0.00027945,2]
[341441681,1730886651022,-500.0,0.00027945,2]
[341441682,1730886651035,-181.00090255,0.00027945,2]
[341441683,1730886651046,-500.0,0.00027945,2]
[341441684,1730886651055,-500.0,0.00027945,2]
[341441685,1730886651064,-500.0,0.00027945,2]
[341441686,1730886651074,-500.0,0.00027945,2]
[341441687,1730886651083,-500.0,0.00027945,2]
[341441688,1730886651093,-500.0,0.00027945,2]
[341441689,1730886651106,-605.87775999,0.00027945,2]
[341441690,1730886651115,-500.0,0.00027945,2]
[341441691,1730886651128,-509.09900052,0.00027945,2]
[341441692,1730886651137,-500.0,0.00027945,2]
[341441693,1730886651147,-500.0,0.00027945,2]
[341441694,1730886651156,-500.0,0.00027945,2]
[341441695,1730886651244,-500.0,0.00027945,2]
[341441696,1730886651256,-500.0,0.00027945,2]
[341441697,1730886651265,-500.0,0.00027945,2]
[341441698,1730886651275,-500.0,0.00027945,2]
[341441699,1730886651283,-500.0,0.00027945,2]
[341441700,1730886651293,-500.0,0.00027945,2]
[341441701,1730886651302,-500.0,0.00027945,2]
[341441702,1730886651311,-500.0,0.00027945,2]
[341441703,1730886651319,-556.59426393,0.00027945,2]
[341441704,1730886651329,-500.0,0.00027945,2]
[341441705,1730886651338,-506.78733619,0.00027945,2]
[341441706,1730886651347,-500.0,0.00027945,2]
[341441707,1730886651357,-500.0,0.00027945,2]
[341441708,1730886651366,-500.0,0.00027945,2]
[341441709,1730886651376,-500.0,0.00027945,2]
[341441710,1730886651385,-500.0,0.00027945,2]
[341441711,1730886651395,-500.0,0.00027945,2]
[341441712,1730886651404,-2060.64,0.00027945,2]
[341441713,1730886651414,-200.0,0.00027945,2]
[341441714,1730886651423,-530.10188665,0.00027945,2]
[341441715,1730886651433,-500.0,0.00027945,2]
[341441716,1730886651442,-500.0,0.00027945,2]
[341441717,1730886651452,-508.9410394,0.00027945,2]
[341441718,1730886651461,-500.0,0.00027945,2]
[341441719,1730886651470,-500.0,0.00027945,2]
[341441720,1730886651480,-500.0,0.00027945,2]
[341441721,1730886651489,-576.10342839,0.00027945,2]
[341441722,1730886651498,-500.0,0.00027945,2]
[341441723,1730886651508,-500.0,0.00027945,2]
[341441724,1730886651517,-538.18870807,0.00027945,2]
[341441725,1730886651527,-1060.37,0.00027945,2]
[341441726,1730886651546,-936.89,0.00027945,2]
[341441727,1730886651559,-500.0,0.00027945,2]
[341441728,1730886651570,-500.0,0.00027945,2]
[341441729,1730886651579,-500.0,0.00027945,2]
[341441730,1730886651590,-500.0,0.00027945,2]
[341441731,1730886651599,-1382.73,0.00027945,2]
[341441732,1730886651609,-500.0,0.00027945,2]
[341441733,1730886651619,-500.0,0.00027945,2]
[341441734,1730886651628,-525.33279834,0.00027945,2]
[341441735,1730886651638,-500.0,0.00027945,2]
[341441736,1730886651648,-500.0,0.00027945,2]
[341441737,1730886651658,-1804.41,0.00027945,2]
[341441738,1730886651668,-500.0,0.00027945,2]
[341441739,1730886651679,-794.58,0.00027945,2]
[341441740,1730886651690,-519.26121529,0.00027945,2]
[341441741,1730886651700,-502.17285563,0.00027945,2]
[341441742,1730886651711,-500.0,0.00027945,2]
[341441743,1730886651722,-500.0,0.00027945,2]
[341441744,1730886651732,-500.0,0.00027945,2]
[341441745,1730886651742,-538.45,0.00027945,2]
[341441746,1730886651754,-572.88979023,0.00027945,2]
[341441747,1730886651765,-500.0,0.00027945,2]
[341441748,1730886651774,-500.0,0.00027945,2]
[341441749,1730886651784,-500.0,0.00027945,2]
[341441750,1730886651793,-500.0,0.00027945,2]
[341441751,1730886651803,-500.0,0.00027945,2]
[341441752,1730886651813,-500.0,0.00027945,2]
[341441753,1730886651822,-500.0,0.00027945,2]
[341441754,1730886651832,-500.0,0.00027945,2]
[341441755,1730886651841,-500.0,0.00027945,2]
[341441756,1730886651851,-500.0,0.00027945,2]
[341441757,1730886651861,-500.0,0.00027945,2]
[341441758,1730886651870,-500.0,0.00027945,2]
[341441759,1730886651879,-528.64060709,0.00027945,2]
[341441760,1730886651888,-512.05323822,0.00027945,2]
[341441761,1730886651898,-500.0,0.00027945,2]
[341441762,1730886651907,-648.62047108,0.00027945,2]
[341441763,1730886651916,-583.56754143,0.00027945,2]
[341441764,1730886651927,-500.0,0.00027945,2]
[341441765,1730886651937,-343.70761727,0.00027945,2]
[341441766,1730886651947,-500.0,0.00027945,2]
[341441767,1730886651956,-500.0,0.00027945,2]
[341441768,1730886651966,-500.0,0.00027945,2]
[341441769,1730886651976,-278.00125161,0.00027945,2]
[341441770,1730886651985,-500.0,0.00027945,2]
[341441771,1730886651994,-500.0,0.00027945,2]
[341441772,1730886652005,-500.0,0.00027945,2]
[341441773,1730886652015,-500.0,0.00027945,2]
[341441774,1730886652024,-377.3557816,0.00027945,2]
[341441775,1730886652037,-500.0,0.00027945,2]
[341441776,1730886652047,-500.0,0.00027945,2]
[341441777,1730886652059,-506.9964651,0.00027945,2]
[341441778,1730886652069,-523.64249045,0.00027945,2]
[341441779,1730886652078,-500.0,0.00027945,2]
[341441780,1730886652087,-500.0,0.00027945,2]
[341441781,1730886652097,-500.0,0.00027945,2]
[341441782,1730886652110,-500.0,0.00027945,2]
[341441783,1730886652120,-500.0,0.00027945,2]
[341441784,1730886652130,-500.0,0.00027945,2]
[341441785,1730886652144,-500.0,0.00027945,2]
[341441786,1730886652154,-200.0,0.00027945,2]
[341441787,1730886652163,-519.37018711,0.00027945,2]
[341441788,1730886652174,-256.37881866,0.00027945,2]
[341441789,1730886652183,-500.0,0.00027945,2]
[341441790,1730886652193,-500.0,0.00027945,2]
[341441791,1730886652202,-500.0,0.00027945,2]
[341441792,1730886652211,-500.0,0.00027945,2]
[341441793,1730886652221,-500.0,0.00027945,2]
[341441794,1730886652230,-500.0,0.00027945,2]
[341441795,1730886652240,-500.0,0.00027945,2]
[341441796,1730886652251,-500.0,0.00027945,2]
[341441797,1730886652261,-561.33,0.00027945,2]
[341441798,1730886652271,-500.0,0.00027945,2]
[341441799,1730886652280,-500.0,0.00027945,2]
[341441800,1730886652290,-500.0,0.00027945,2]
[341441801,1730886652300,-500.0,0.00027945,2]
[341441802,1730886652310,-829.12,0.00027945,2]
[341441803,1730886652320,-183.94327187,0.00027945,2]
[341441804,1730886652330,-500.0,0.00027945,2]
[341441805,1730886652339,-500.0,0.00027945,2]
[341441806,1730886652349,-500.0,0.00027945,2]
[341441807,1730886652359,-500.0,0.00027945,2]
[341441808,1730886652368,-500.0,0.00027945,2]
[341441809,1730886652378,-500.0,0.00027945,2]
[341441810,1730886652388,-500.0,0.00027945,2]
[341441811,1730886652398,-500.0,0.00027945,2]
[341441812,1730886652408,-500.0,0.00027945,2]
[341441813,1730886652417,-1781.74,0.00027945,2]
[341441814,1730886652426,-981.02,0.00027945,2]
[341441815,1730886652436,-500.0,0.00027945,2]
[341441816,1730886652446,-557.65063019,0.00027945,2]
[341441817,1730886652455,-500.0,0.00027945,2]
[341441818,1730886652464,-500.0,0.00027945,2]
[341441819,1730886652474,-500.0,0.00027945,2]
[341441820,1730886652483,-500.0,0.00027945,2]
[341441821,1730886652493,-500.0,0.00027945,2]
[341441822,1730886652503,-4780.83,0.00027945,2]
[341441823,1730886652513,-500.0,0.00027945,2]
[341441824,1730886652522,-230.73,0.00027945,2]
[341441825,1730886652531,-500.0,0.00027945,2]
[341441826,1730886652541,-504.921614,0.00027945,2]
[341441827,1730886652550,-500.0,0.00027945,2]
[341441828,1730886652560,-935.4,0.00027945,2]
[341441829,1730886652570,-1609.16,0.00027945,2]
[341441830,1730886652579,-500.0,0.00027945,2]
[341441831,1730886652589,-893.57,0.00027945,2]
[341441832,1730886652599,-500.0,0.00027945,2]
[341441833,1730886652608,-500.0,0.00027945,2]
[341441834,1730886652617,-500.0,0.00027945,2]
[341441835,1730886652627,-500.0,0.00027945,2]
[341441836,1730886652637,-7260.87,0.00027945,2]
[341441837,1730886652742,-500.0,0.00027945,2]
[341441838,1730886652753,-500.0,0.00027945,2]
[341441839,1730886652762,-500.0,0.00027945,2]
[341441840,1730886652772,-500.0,0.00027945,2]
[341441841,1730886652781,-500.0,0.00027945,2]
[341441842,1730886652790,-14249.64,0.00027945,2]
[341441843,1730886652800,-506.7,0.00027945,2]
[341441844,1730886652809,-500.0,0.00027945,2]
[341441845,1730886652818,-500.0,0.00027945,2]
[341441846,1730886652828,-514.72432807,0.00027945,2]
[341441847,1730886652838,-500.0,0.00027945,2]
[341441848,1730886652849,-2658.28,0.00027945,2]
[341441849,1730886652859,-500.0,0.00027945,2]
[341441850,1730886652870,-500.0,0.00027945,2]
[341441851,1730886652879,-2185.94,0.00027945,2]
[341441852,1730886652889,-892.73,0.00027945,2]
[341441853,1730886652898,-481.91059386,0.00027945,2]
[341441854,1730886653055,-18.08940614,0.00027945,2]
[341441855,1730886653066,-500.0,0.00027945,2]
[341441856,1730886653076,-500.0,0.00027945,2]
[341441857,1730886653085,-500.0,0.00027945,2]
[341441858,1730886653095,-89.23478661,0.00027945,2]
[341441859,1730886653137,-410.76521339,0.00027945,2]
[341441860,1730886653147,-500.0,0.00027945,2]
[341441861,1730886653156,-500.0,0.00027945,2]
[341441862,1730886653166,-500.0,0.00027945,2]
[341441863,1730886653175,-1185.63,0.00027945,2]
[341441864,1730886653185,-500.0,0.00027945,2]
[341441865,1730886653194,-500.0,0.00027945,2]
[341441866,1730886653205,-518.34687214,0.00027945,2]
[341441867,1730886653215,-211.65814992,0.00027945,2]
[341441868,1730886653224,-249.46858537,0.00027945,2]
[341441869,1730886653239,-250.53141463,0.00027945,2]
[341441870,1730886653258,-500.0,0.00027945,2]
[341441871,1730886653276,-500.0,0.00027945,2]
[341441872,1730886653291,-151.0,0.00027945,7]
[341441873,1730886653310,-500.0,0.00027945,2]
[341441874,1730886653326,-1120.8042278,0.00027985,5]
[341441875,1730886653345,-1000.0,0.00027985,5]
[341441876,1730886653360,-500.89473811,0.00027985,5]
[341441877,1730886653377,-5206.34024352,0.00028085,2]
[341441878,1730886653395,-500.0,0.00028219,2]
[341441879,1730886653408,-500.0,0.00028219,2]
[341441880,1730886653423,-500.0,0.00028219,2]
[341441881,1730886653439,-500.0,0.00028219,2]
[341441882,1730886653457,-500.0,0.00028219,2]
[341441883,1730886653475,-500.0,0.00028219,2]
[341441884,1730886653487,-500.0,0.00028219,2]
[341441885,1730886653501,-500.0,0.00028219,2]
[341441886,1730886653518,-500.0,0.00028219,2]
[341441887,1730886653530,-500.0,0.00028219,2]
[341441888,1730886653546,-500.0,0.00028219,2]
[341441889,1730886653561,-500.0,0.00028219,2]
[341441890,1730886653572,-500.0,0.00028219,2]
[341441891,1730886653586,-500.0,0.00028219,2]
[341441892,1730886653598,-453.88348648,0.00028219,2]
[341441893,1730886653612,-500.0,0.00028219,2]
[341441894,1730886653624,-174.93924213,0.00028219,2]
[341441895,1730886653637,-500.0,0.00028219,2]
[341441896,1730886653650,-500.0,0.00028219,2]
[341441897,1730886653663,-500.0,0.00028219,2]
[341441898,1730886653675,-509.33765512,0.00028219,2]
[341441899,1730886653687,-500.0,0.00028219,2]
[341441900,1730886653700,-500.0,0.00028219,2]
[341441901,1730886653714,-579.32272302,0.00028219,2]
[341441902,1730886653729,-500.0,0.00028219,2]
[341441903,1730886653747,-500.0,0.00028219,2]
[341441904,1730886653760,-500.0,0.00028219,2]
[341441905,1730886653773,-500.0,0.00028219,2]
[341441906,1730886653785,-500.0,0.00028219,2]
[341441907,1730886653796,-500.0,0.00028219,2]
[341441908,1730886653805,-168.06368299,0.00028219,2]
[341441909,1730886653814,-500.0,0.00028219,2]
[341441910,1730886653824,-500.0,0.00028219,2]
[341441911,1730886653833,-354.80000225,0.00028219,2]
[341441912,1730886653843,-500.0,0.00028219,2]
[341441913,1730886653852,-500.0,0.00028219,2]
[341441914,1730886653861,-530.85474002,0.00028219,2]
[341441915,1730886653871,-500.0,0.00028219,2]
[341441916,1730886653880,-500.0,0.00028219,2]
[341441917,1730886653889,-500.0,0.00028219,2]
[341441918,1730886653899,-500.0,0.00028219,2]
[341441919,1730886653909,-500.0,0.00028219,2]
[341441920,1730886653919,-500.0,0.00028219,2]
[341441921,1730886653928,-163.82883108,0.00028219,2]
[341441922,1730886653938,-500.0,0.00028219,2]
[341441923,1730886653948,-506.32361056,0.00028219,2]
[341441924,1730886653957,-500.0,0.00028219,2]
[341441925,1730886653966,-500.0,0.00028219,2]
[341441926,1730886653976,-500.0,0.00028219,2]
[341441927,1730886653985,-331.22178645,0.00028219,2]
[341441928,1730886654337,-168.77821355,0.00028219,2]
[341441929,1730886654347,-500.0,0.00028219,2]
[341441930,1730886654356,-500.0,0.00028219,2]
[341441931,1730886654366,-140.9320035,0.00028219,2]
[341441932,1730886654408,-359.0679965,0.00028219,2]
[341441933,1730886654419,-506.46867743,0.00028219,2]
[341441934,1730886654428,-500.0,0.00028219,2]
[341441935,1730886654438,-151.66918778,0.00028219,2]
[341441936,1730886654448,-500.0,0.00028219,2]
[341441937,1730886654457,-500.0,0.00028219,2]
[341441938,1730886654466,-640.34852633,0.00028219,2]
[341441939,1730886654475,-540.28,0.00028219,2]
[341441940,1730886654484,-500.0,0.00028219,2]
[341441941,1730886654493,-500.0,0.00028219,2]
[341441942,1730886654503,-500.0,0.00028219,2]
[341441943,1730886654512,-500.0,0.00028219,2]
[341441944,1730886654521,-500.0,0.00028219,2]
[341441945,1730886654530,-525.636408,0.00028219,2]
[341441946,1730886654540,-500.0,0.00028219,2]
[341441947,1730886654549,-500.0,0.00028219,2]
[341441948,1730886654559,-500.0,0.00028219,2]
[341441949,1730886654568,-500.0,0.00028219,2]
[341441950,1730886654579,-500.0,0.00028219,2]
[341441951,1730886654588,-500.0,0.00028219,2]
[341441952,1730886654598,-633.36,0.00028219,2]
[341441953,1730886654608,-500.0,0.00028219,2]
[341441954,1730886654617,-500.0,0.00028219,2]
[341441955,1730886654626,-500.0,0.00028219,2]
[341441956,1730886654636,-500.0,0.00028219,2]
[341441957,1730886654645,-503.16068032,0.00028219,2]
[341441958,1730886654655,-500.0,0.00028219,2]
[341441959,1730886654664,-500.0,0.00028219,2]
[341441960,1730886654674,-500.0,0.00028219,2]
[341441961,1730886654683,-500.0,0.00028219,2]
[341441962,1730886654692,-500.0,0.00028219,2]
[341441963,1730886654702,-500.0,0.00028219,2]
[341441964,1730886654712,-500.0,0.00028219,2]
[341441965,1730886654721,-583.80866009,0.00028219,2]
[341441966,1730886654730,-500.0,0.00028219,2]
[341441967,1730886654739,-500.0,0.00028219,2]
[341441968,1730886654748,-500.0,0.00028219,2]
[341441969,1730886654757,-500.0,0.00028219,2]
[341441970,1730886654767,-500.0,0.00028219,2]
[341441971,1730886654777,-500.0,0.00028219,2]
[341441972,1730886654787,-431.635688,0.00028219,2]
[341441973,1730886654799,-68.364312,0.00028219,2]
[341441974,1730886654808,-500.0,0.00028219,2]
[341441975,1730886654817,-500.0,0.00028219,2]
[341441976,1730886654826,-200.0,0.00028219,2]
[341441977,1730886654836,-833.74386673,0.00028219,2]
[341441978,1730886655020,-1226.89613327,0.00028219,2]
[341441979,1730886655033,-500.0,0.00028219,2]
[341441980,1730886655042,-515.68034717,0.00028219,2]
[341441981,1730886655052,-500.0,0.00028219,2]
[341441982,1730886655061,-502.63102413,0.00028219,2]
[341441983,1730886655070,-500.0,0.00028219,2]
[341441984,1730886655080,-500.0,0.00028219,2]
[341441985,1730886655089,-500.0,0.00028219,2]
[341441986,1730886655099,-1060.37,0.00028219,2]
[341441987,1730886655110,-936.89,0.00028219,2]
[341441988,1730886655119,-154.73186284,0.00028219,2]
[341441989,1730886655129,-500.0,0.00028219,2]
[341441990,1730886655139,-500.0,0.00028219,2]
[341441991,1730886655149,-500.0,0.00028219,2]
[341441992,1730886655158,-1382.73,0.00028219,2]
[341441993,1730886655167,-517.61495181,0.00028219,2]
[341441994,1730886655176,-500.0,0.00028219,2]
[341441995,1730886655185,-500.0,0.00028219,2]
[341441996,1730886655195,-500.0,0.00028219,2]
[341441997,1730886655204,-1804.41,0.00028219,2]
[341441998,1730886655214,-500.0,0.00028219,2]
[341441999,1730886655223,-794.58,0.00028219,2]
[341442000,1730886655232,-500.0,0.00028219,2]
[341442001,1730886655242,-500.0,0.00028219,2]
[341442002,1730886655252,-500.0,0.00028219,2]
[341442003,1730886655261,-538.45,0.00028219,2]
[341442004,1730886655270,-518.5902453,0.00028219,2]
[341442005,1730886655279,-500.0,0.00028219,2]
[341442006,1730886655289,-444.6728296,0.00028219,2]
[341442007,1730886655298,-500.0,0.00028219,2]
[341442008,1730886655308,-500.0,0.00028219,2]
[341442009,1730886655317,-500.0,0.00028219,2]
[341442010,1730886655326,-500.0,0.00028219,2]
[341442011,1730886655336,-500.0,0.00028219,2]
[341442012,1730886655346,-500.0,0.00028219,2]
[341442013,1730886655355,-500.0,0.00028219,2]
[341442014,1730886655365,-500.0,0.00028219,2]
[341442015,1730886655374,-273.62605032,0.00028219,2]
[341442016,1730886655383,-500.0,0.00028219,2]
[341442017,1730886655392,-500.0,0.00028219,2]
[341442018,1730886655401,-500.0,0.00028219,2]
[341442019,1730886655410,-500.0,0.00028219,2]
[341442020,1730886655419,-629.73764802,0.00028219,2]
[341442021,1730886655428,-500.0,0.00028219,2]
[341442022,1730886655438,-514.19637991,0.00028219,2]
[341442023,1730886655447,-579.97,0.00028219,2]
[341442024,1730886655456,-511.83269648,0.00028219,2]
[341442025,1730886655465,-500.0,0.00028219,2]